Workbook

Sheet Инструкция
A2: =HYPERLINK("https://www.komei.ru/","KOMEI.RU | фитнес тренер онлайн") -> KOMEI.RU | фитнес тренер онлайн
A3: Тесты предназначены, в первую очередь, для вас. Зная, из какой точки мы отправляемся, зная цель - точку назначения, мы вместе сможем проложить и пройти наиболее эффективный и безопасный маршрут. Отвечайте на вопросы честно, не завышая и не занижая результаты. Результаты тестов будут анализироваться спортивным врачом и вашим персональным тренером. Всё, что в вашем случае невыполнимо или требует особых усилий/затрат, вы можете пропустить. Но помните - от полноты картины зависит качество разработки индивидуальной программы.
A4: Тесты могут быть дополнены или изменены. Если у вас есть дополнительная информация, которая будет полезна для совершенствования программы, не сомневайтесь её предоставить.

Sheet Антропометрия
A2: Антропометрические измерения
A3: Объективный силуэт
C4: Осмотр 0 | D4: Осмотр 1 | E4: Осмотр 2
C5: «___»___2018 | D5: «___»___2018 | E5: «___»___2018
A6: Рост
A7: Шея
A8: Окружность плеч
A9: Грудная клетка | B9: под грудью
A10: Окружность талии
A11: Окружность бедер
A12: Бедро | B12: Прав
B13: Лев
A14: Голень | B14: Прав
B15: Лев
A16: Плечо | B16: Прав
B17: Лев
A18: обхват предплечья
A19: Формула Маккаллума (max генетически возможные размеры)
A20: Измеряемая область | B20: По формуле | C20: дата | D20: дата | E20: Разница
A21: обхват запястья
A22: обхват груди | B22: =B21*6.5 -> 0 | E22: =B22-D22 -> 0
A23: обхват бедер | B23: =B22*85% -> 0 | E23: 0
A24: обхват талии | B24: =B22*70% -> 0 | E24: 0
A25: обхват бедра | B25: =B22*53% -> 0 | E25: 0
A26: обхват шеи | B26: =B22*37% -> 0 | E26: 0
A27: обхват бицепса | B27: =B22*36% -> 0 | E27: 0
A28: обхват голени | B28: =B22*33.5% -> 0 | E28: 0
A29: обхват предплечья | B29: =B22*29% -> 0 | E29: 0
A30: вес (кг)
A31: рост (см)
B33: ввести значение в желтые поля

Sheet Оценка ФП
A2: Для тестирования состояния сердечно-сосудистой системы предлагаю использовать шестимоментную пробу: специальный фитнес тест, выполняемый в описываемой последовательности. Записывайте каждое показание пульса.
A4: Проба Мартине-Кушелевского (20 приседаний за 30 с) | I4: Показания
A5: 1. После пятиминутного отдыха в положении лежа подсчитать пульс за 1 мин.
A6: 2. Спокойно встать, постоять 1 мин. и подсчитать пульс за 1 мин.
A7: Промежуточный результат | I7: =(I6-I5)*10 -> 0
A8: 4. Сделать 20 глубоких приседаний в течение 30 сек. Руки выносить вперед во время приседания и опускать вниз при выпрямлении. Подсчитать пульс в течение первой минуты сразу после последнего приседания.
A9: 5. Подсчитать пульс в течение второй минуты.
A10: 6. Подсчитать пульс в течение третьей минуты.
A11: СУММА | I11: =SUM(I5:I10) -> 0
A12: Определение уровня:
A14: 300 - 350 – высокий уровень;
A15: 350 - 400 – средний уровень;
A16: 400 - 450 – плохой уровень;
A17: 450 - 500 – у нетренированных, имеющих отклонения в состоянии здоровья
A19: Стресс тест
A21: Выполняются в течении одной тренировочной сессии, короткий период отдыха между упражнениями (не более 60 сек) Цель: выполнить максимальное количество повторов за 60 сек
A23: Дата:
A24: № | B24: Тест | C24: Описание | D24: Результаты
A25: 1 | B25: Планка (сек)
A26: 2 | B26: Отжимания от пола (раз) | C26: Нормальная постановка рук, полный диапазон.
A27: 3 | B27: Запрыгивание на скамью (раз) | C27: Высота — 50-60 см
C28: Новички — 30 см
A29: 4 | B29: Подтягивания (раз) или Вис на турнике (сек) | C29: Без раскачиваний, подбородок — над турником.
A30: 5 | B30: Выпады прыжком (раз) | C30: Общее количество на обе ноги
A31: 6 | B31: Скручивания (раз) | C31: Позиция — в ¾ (лопатки не касаются пола)
B34: Гибкость
B36: Сгибания из положения стоя, колени выпрямлены, достать пол ладонями. Результат - см до пола.
B39: Баланс
B41: Встать ровно, оторвать одну ногу от пола, закрыть глаза, удерживать баланс без раскачиваний. Выполнить на обе ноги. Записать худший результат в сек.

Sheet Оценка питания
C2: Если для Вас затруднительно заполнение электронных дневников/ калькуляторов питания, заполните таблицу ниже. Достаточно 3 дня: 2 стандартных рабочих и один выходной. Впишите всю еду, включая перекусы, и примерное количество (стандартная порция ~200 г)
C3: Дневник питания
B4: Дата _____________________ | D4: день недели
C5: блюдо | D5: кол-во | F5: Примечания
C6: Завтрак
C9: Перекус
C12: Обед
C15: Перекус
C18: Ужин
C21: Перекус
C25: Вода (л) | E25: Сон
C27: Примечания
B32: Дата _____________________ | D32: день недели
C33: блюдо | D33: кол-во | F33: Примечания
C34: Завтрак
C37: Перекус
C40: Обед
C43: Перекус
C46: Ужин
C49: Перекус
C53: Вода (л) | E53: Сон
C55: Примечания
B60: Дата _____________________ | D60: день недели
C61: блюдо | D61: кол-во | F61: Примечания
C62: Завтрак
C65: Перекус
C68: Обед
C71: Перекус
C74: Ужин
C77: Перекус
C81: Вода (л) | E81: Сон
C83: Примечания
B88: Дата _____________________ | D88: день недели
C89: блюдо | D89: кол-во | F89: Примечания
C90: Завтрак
C93: Перекус
C96: Обед
C99: Перекус
C102: Ужин
C105: Перекус
C109: Вода (л) | E109: Сон
C111: Примечания

Sheet Fat Mass
A1: =HYPERLINK("http://www.komei.ru/","http://www.komei.ru/") -> http://www.komei.ru/
B2: Рекомендации по измерению: Рост — попросите кого-нибудь помочь вам сделать измерения, или по старинке — отметьте карандашом свой рост у дверного косяка, а затем измерьте сантиметровой лентой. Талия — измерения делаются на уровне пупка. Живот расслаблен, на выдохе, но без усилия. Бедра (только для женщин) — измерения производятся в самой широкой части вокруг бедер, ноги поставить вместе. Шея — держите голову прямо, глядя перед собой; плечи расслаблены и опущены вниз. Для уточнения результата, сделайте каждое измерение трижды, сложите и разделите результаты на три. Все измерения производятся в сантиметрах
B3: КАЛЬКУЛЯТОР ЖИРОВОЙ МАССЫ
B6: Мужчины | F6: Степень | G6: % содержания жира
B7: Рост | D7: см
B8: Объём талии | D8: см | F8: Недостаток | G8: < 18
B9: Окружность шеи | D9: см | F9: Норма | G9: 18-26
B10: Процент жира | C10: =86.01*LOG10((C8-C9)/2.54)-70.041*LOG10(C7/2.54)+36.76 -> #NUM! | D10: % | F10: Избыток 1 | G10: 30-35
F11: Избыток 2 | G11: 35-40
F12: Избыток 3 | G12: 40-50
B13: ЖЕНЩИНЫ | F13: Избыток 4 | G13: > 50
B14: Рост | D14: см
B15: Объём талии | D15: см
B16: Окружность бёдер | D16: см
B17: Окружность шеи | D17: см
B18: Процент жира | C18: =163.205*LOG10((C15+C16-C17)/2.54)-97.684*LOG10(C14/2.54)-"78,387" -> #NUM! | D18: %
B22: Males
B23: % body fat = 86.010 x log10(abdomen - neck) - 70.041 x log10(height) + 36.76
B24: Females
B25: % body fat = 163.205 x log10(waist + hip - neck) - 97.684 x log10(height) - 78.387
B26: (All circumference and height measurements are in inches)

Sheet BMR и потребление калорий
B2: Введите свои данные
B3: ЗАПОЛНЯТЬ ТОЛЬКО КРАСНЫЕ ПОЛЯ!
B4: Рост (см) | C4: 180
B5: Вес (кг) | C5: 90
B6: Возраст (лет) | C6: 40
B8: BMR/БМИ:
B9: МУЖ | C9: =SUM(66+(13.7*C5)+(5*C4)-(6.8*C6)) -> 1927
B10: ЖЕН | C10: =SUM(655+(9.6*C5)+(1.8*C4)-(4.7*C6)) -> 1655
B12: Коэффициент активности | C12: Уровень активности | D12: Количество тренировок | E12: КАЛОРИИ МУЖ | F12: КАЛОРИИ ЖЕН
B13: 1 | C13: Сидячий | D13: Никаких упражнений | E13: =SUM(C9*1) -> 1927 | F13: =SUM(C10*1) -> 1655
B14: 1.2 | C14: Очень лёгкая активность | D14: 1-3 часа упражнений в неделю | E14: =SUM(C9*1.2) -> 2312.4 | F14: =SUM(C10*1.2) -> 1986
B15: 1.4 | C15: Лёгкая активность | D15: 3-5 часа упражнений в неделю | E15: =SUM(C9*1.4) -> 2697.8 | F15: =SUM(C10*1.4) -> 2317
B16: 1.6 | C16: Средняя активность | D16: 5-8 часа упражнений в неделю | E16: =SUM(C9*1.6) -> 3083.2 | F16: =SUM(C10*1.6) -> 2648
B17: 1.8 | C17: Высокая активность | D17: 8-12 часа упражнений в неделю | E17: =SUM(C9*1.8) -> 3468.6 | F17: =SUM(C10*1.8) -> 2979
B18: 2 | C18: Эктремальная активность | D18: 12+ часа упражнений в неделю | E18: =SUM(C9*2) -> 3854 | F18: =SUM(C10*2) -> 3310
B21: Введите свои данные и выберете потребление калорий в соответствии со своим уровнем активности
